[Event "Titled Tuesday Blitz November 07 Late 2023"]
[White "victormago"]
[Black "Salinas Herrera, Pablo"]
[BlackFideId "3407128"]
[WhiteElo "2463"]
[BlackElo "2902"]
[Result "0-1"]
[Round "1"]
[TimeControl "180+1"]
[Date "2023.11.07"]
[WhiteClock "0:00:11"]
[BlackClock "0:01:09"]
[Board "36"]

1. d4 {[%clk 0:02:59]}  g6 {[%clk 0:03:00]} 2. Nf3 {[%clk 0:02:57]}  Bg7 {[%clk 0:03:00]} 3. c4 {[%clk 0:02:56]}  d6 {[%clk 0:03:00]} 4. Nc3 {[%clk 0:02:54]}  Nc6 {[%clk 0:03:00]} 5. e3 {[%clk 0:02:46]}  e5 {[%clk 0:03:00]} 6. dxe5 {[%clk 0:02:42]}  dxe5 {[%clk 0:02:58]} 7. Qxd8+ {[%clk 0:02:39]}  Nxd8 {[%clk 0:02:59]} 8. Be2 {[%clk 0:02:39]}  c6 {[%clk 0:02:55]} 9. O-O {[%clk 0:02:38]}  f6 {[%clk 0:02:52]} 10. b3 {[%clk 0:02:37]}  Nh6 {[%clk 0:02:49]} 11. Ba3 {[%clk 0:02:35]}  Bf8 {[%clk 0:02:49]} 12. Bxf8 {[%clk 0:02:35]}  Rxf8 {[%clk 0:02:48]} 13. Rad1 {[%clk 0:02:35]}  Ke7 {[%clk 0:02:47]} 14. Ne4 {[%clk 0:02:31]}  Ne6 {[%clk 0:02:47]} 15. Nd6 {[%clk 0:02:28]}  Nf7 {[%clk 0:02:46]} 16. Nxf7 {[%clk 0:02:16]}  Rxf7 {[%clk 0:02:47]} 17. Rd2 {[%clk 0:02:15]}  Bd7 {[%clk 0:02:45]} 18. Rfd1 {[%clk 0:02:15]}  Be8 {[%clk 0:02:45]} 19. Ne1 {[%clk 0:02:07]}  a5 {[%clk 0:02:44]} 20. a3 {[%clk 0:02:03]}  f5 {[%clk 0:02:37]} 21. Nd3 {[%clk 0:02:00]}  Kf6 {[%clk 0:02:36]} 22. f4 {[%clk 0:01:55]}  exf4 {[%clk 0:02:35]} 23. exf4 {[%clk 0:01:54]}  Rd7 {[%clk 0:02:34]} 24. Bf1 {[%clk 0:01:36]}  Rad8 {[%clk 0:02:32]} 25. g3 {[%clk 0:01:34]}  Nc5 {[%clk 0:02:25]} 26. b4 {[%clk 0:01:30]}  axb4 {[%clk 0:02:24]} 27. axb4 {[%clk 0:01:29]}  Ne4 {[%clk 0:02:25]} 28. Rc2 {[%clk 0:01:25]}  Bf7 {[%clk 0:02:25]} 29. Be2 {[%clk 0:01:22]}  Rd4 {[%clk 0:02:17]} 30. Nb2 {[%clk 0:01:10]}  h6 {[%clk 0:02:03]} 31. Rxd4 {[%clk 0:01:09]}  Rxd4 {[%clk 0:02:04]} 32. Bd3 {[%clk 0:01:05]}  Nd6 {[%clk 0:01:51]} 33. Kf2 {[%clk 0:00:59]}  Nc8 {[%clk 0:01:43]} 34. Ke3 {[%clk 0:00:58]}  Rd8 {[%clk 0:01:44]} 35. c5 {[%clk 0:00:55]}  Ne7 {[%clk 0:01:44]} 36. Bc4 {[%clk 0:00:54]}  Bxc4 {[%clk 0:01:43]} 37. Rxc4 {[%clk 0:00:51]}  Nd5+ {[%clk 0:01:44]} 38. Ke2 {[%clk 0:00:48]}  Ra8 {[%clk 0:01:44]} 39. Kd2 {[%clk 0:00:41]}  Ra2 {[%clk 0:01:39]} 40. Kc1 {[%clk 0:00:41]}  Ra1+ {[%clk 0:01:39]} 41. Kd2 {[%clk 0:00:40]}  Rh1 {[%clk 0:01:40]} 42. Rd4 {[%clk 0:00:36]}  Rxh2+ {[%clk 0:01:39]} 43. Kc1 {[%clk 0:00:36]}  g5 {[%clk 0:01:39]} 44. fxg5+ {[%clk 0:00:36]}  hxg5 {[%clk 0:01:40]} 45. b5 {[%clk 0:00:33]}  Rg2 {[%clk 0:01:36]} 46. bxc6 {[%clk 0:00:33]}  bxc6 {[%clk 0:01:37]} 47. Rd3 {[%clk 0:00:32]}  g4 {[%clk 0:01:29]} 48. Nc4 {[%clk 0:00:27]}  Rg1+ {[%clk 0:01:26]} 49. Kd2 {[%clk 0:00:26]}  Ra1 {[%clk 0:01:21]} 50. Ne3 {[%clk 0:00:19]}  Ra2+ {[%clk 0:01:19]} 51. Kc1 {[%clk 0:00:19]}  Nxe3 {[%clk 0:01:15]} 52. Rxe3 {[%clk 0:00:20]}  Ra5 {[%clk 0:01:15]} 53. Rc3 {[%clk 0:00:20]}  Ke5 {[%clk 0:01:16]} 54. Kd2 {[%clk 0:00:20]}  Ra2+ {[%clk 0:01:10]} 55. Ke3 {[%clk 0:00:11]}  Rg2 {[%clk 0:01:09]} 0-1


[Site "https://www.chess.com"]

[Event "Titled Tuesday Blitz November 07 Late 2023"]
[White "Nyzhnyk, Illya"]
[Black "Zirkelbach, Maj"]
[WhiteFideId "14118084"]
[BlackFideId "14613395"]
[WhiteElo "2894"]
[BlackElo "2462"]
[Result "0-1"]
[Round "1"]
[TimeControl "180+1"]
[Date "2023.11.07"]
[WhiteClock "0:00:08"]
[BlackClock "0:00:08"]
[Board "37"]

1. Nf3 {[%clk 0:00:28]}  Nf6 {[%clk 0:02:55]} 2. g3 {[%clk 0:00:28]}  d5 {[%clk 0:02:51]} 3. Bg2 {[%clk 0:00:29]}  c6 {[%clk 0:02:51]} 4. O-O {[%clk 0:00:29]}  Bg4 {[%clk 0:02:37]} 5. d3 {[%clk 0:00:30]}  Nbd7 {[%clk 0:02:37]} 6. c3 {[%clk 0:00:30]}  e5 {[%clk 0:02:37]} 7. Nbd2 {[%clk 0:00:30]}  Be7 {[%clk 0:02:24]} 8. Qc2 {[%clk 0:00:31]}  O-O {[%clk 0:02:23]} 9. h3 {[%clk 0:00:31]}  Bh5 {[%clk 0:02:23]} 10. e4 {[%clk 0:00:32]}  dxe4 {[%clk 0:02:23]} 11. Nxe4 {[%clk 0:00:32]}  Nxe4 {[%clk 0:02:24]} 12. dxe4 {[%clk 0:00:33]}  Qc7 {[%clk 0:02:18]} 13. Be3 {[%clk 0:00:33]}  Nc5 {[%clk 0:01:53]} 14. b4 {[%clk 0:00:32]}  Ne6 {[%clk 0:01:52]} 15. Ne1 {[%clk 0:00:32]}  Rfd8 {[%clk 0:01:48]} 16. Nd3 {[%clk 0:00:32]}  f6 {[%clk 0:01:46]} 17. f4 {[%clk 0:00:31]}  exf4 {[%clk 0:01:46]} 18. gxf4 {[%clk 0:00:32]}  b6 {[%clk 0:01:25]} 19. f5 {[%clk 0:00:27]}  Nf8 {[%clk 0:01:25]} 20. Bf4 {[%clk 0:00:26]}  Qc8 {[%clk 0:01:18]} 21. Rae1 {[%clk 0:00:26]}  Qa6 {[%clk 0:01:15]} 22. Nc1 {[%clk 0:00:25]}  Qc4 {[%clk 0:01:09]} 23. Rf2 {[%clk 0:00:25]}  c5 {[%clk 0:00:49]} 24. Bf1 {[%clk 0:00:25]}  Qf7 {[%clk 0:00:49]} 25. b5 {[%clk 0:00:26]}  Kh8 {[%clk 0:00:48]} 26. c4 {[%clk 0:00:23]}  Bd6 {[%clk 0:00:46]} 27. Nd3 {[%clk 0:00:22]}  Bxf4 {[%clk 0:00:41]} 28. Rxf4 {[%clk 0:00:22]}  Rd4 {[%clk 0:00:40]} 29. Rh4 {[%clk 0:00:22]}  g5 {[%clk 0:00:37]} 30. fxg6 {[%clk 0:00:21]}  Bxg6 {[%clk 0:00:37]} 31. Nf4 {[%clk 0:00:21]}  Re8 {[%clk 0:00:34]} 32. Nd5 {[%clk 0:00:19]}  f5 {[%clk 0:00:29]} 33. Qf2 {[%clk 0:00:18]}  fxe4 {[%clk 0:00:25]} 34. Qxf7 {[%clk 0:00:18]}  Bxf7 {[%clk 0:00:26]} 35. Nf6 {[%clk 0:00:18]}  Re6 {[%clk 0:00:26]} 36. Nd5 {[%clk 0:00:17]}  Rg6+ {[%clk 0:00:24]} 37. Bg2 {[%clk 0:00:18]}  Bxd5 {[%clk 0:00:25]} 38. cxd5 {[%clk 0:00:18]}  Rxd5 {[%clk 0:00:22]} 39. Rhxe4 {[%clk 0:00:18]}  Rd8 {[%clk 0:00:16]} 40. Re7 {[%clk 0:00:18]}  Rg7 {[%clk 0:00:15]} 41. Kh1 {[%clk 0:00:18]}  c4 {[%clk 0:00:14]} 42. Rxg7 {[%clk 0:00:15]}  Kxg7 {[%clk 0:00:13]} 43. Re7+ {[%clk 0:00:16]}  Kf6 {[%clk 0:00:13]} 44. Rxa7 {[%clk 0:00:16]}  Ne6 {[%clk 0:00:13]} 45. Ra3 {[%clk 0:00:16]}  Rd1+ {[%clk 0:00:12]} 46. Kh2 {[%clk 0:00:16]}  Rd3 {[%clk 0:00:12]} 47. Ra4 {[%clk 0:00:14]}  c3 {[%clk 0:00:11]} 48. Rc4 {[%clk 0:00:15]}  Ke5 {[%clk 0:00:11]} 49. Bf1 {[%clk 0:00:14]}  Rd2+ {[%clk 0:00:11]} 50. Kg3 {[%clk 0:00:15]}  c2 {[%clk 0:00:10]} 51. Kf3 {[%clk 0:00:15]}  Nd4+ {[%clk 0:00:09]} 52. Ke3 {[%clk 0:00:08]}  Rd1 {[%clk 0:00:08]} 0-1


[Site "https://www.chess.com"]

[Event "Titled Tuesday Blitz November 07 Late 2023"]
[White "Bachmann, Axel"]
[Black "Estrada Nieto, Julian"]
[WhiteFideId "3700488"]
[BlackFideId "5101018"]
[WhiteElo "2875"]
[BlackElo "2456"]
[Result "1-0"]
[Round "1"]
[TimeControl "180+1"]
[Date "2023.11.07"]
[WhiteClock "0:01:26"]
[BlackClock "0:00:00"]
[Board "39"]

1. d4 {[%clk 0:02:58]}  d5 {[%clk 0:03:00]} 2. c4 {[%clk 0:02:56]}  dxc4 {[%clk 0:03:01]} 3. Nf3 {[%clk 0:02:54]}  Nf6 {[%clk 0:03:01]} 4. e3 {[%clk 0:02:54]}  e6 {[%clk 0:03:01]} 5. Bxc4 {[%clk 0:02:54]}  a6 {[%clk 0:03:01]} 6. O-O {[%clk 0:02:49]}  c5 {[%clk 0:03:01]} 7. e4 {[%clk 0:02:48]}  Nxe4 {[%clk 0:02:44]} 8. d5 {[%clk 0:02:48]}  Nd6 {[%clk 0:02:29]} 9. dxe6 {[%clk 0:02:47]}  Bxe6 {[%clk 0:02:25]} 10. Bxe6 {[%clk 0:02:46]}  fxe6 {[%clk 0:02:26]} 11. Re1 {[%clk 0:02:44]}  Be7 {[%clk 0:02:17]} 12. Rxe6 {[%clk 0:02:35]}  O-O {[%clk 0:02:14]} 13. Bg5 {[%clk 0:02:29]}  Nf5 {[%clk 0:01:02]} 14. Qb3 {[%clk 0:02:19]}  Kh8 {[%clk 0:00:54]} 15. Bxe7 {[%clk 0:02:19]}  Nxe7 {[%clk 0:00:54]} 16. Nc3 {[%clk 0:02:19]}  Nbc6 {[%clk 0:00:48]} 17. Qxb7 {[%clk 0:02:11]}  Rb8 {[%clk 0:00:39]} 18. Qxa6 {[%clk 0:02:10]}  Rxb2 {[%clk 0:00:33]} 19. Rxc6 {[%clk 0:02:02]}  Nxc6 {[%clk 0:00:32]} 20. Qxc6 {[%clk 0:02:02]}  Qa5 {[%clk 0:00:17]} 21. Qd6 {[%clk 0:01:50]}  Rfb8 {[%clk 0:00:13]} 22. Qd3 {[%clk 0:01:42]}  h6 {[%clk 0:00:09]} 23. h3 {[%clk 0:01:38]}  c4 {[%clk 0:00:08]} 24. Qxc4 {[%clk 0:01:32]}  Rc2 {[%clk 0:00:08]} 25. Qf4 {[%clk 0:01:33]}  Rbb2 {[%clk 0:00:07]} 26. Re1 {[%clk 0:01:26]}  Rxc3 {[%clk 0:00:02]} 27. Re8+ {[%clk 0:01:25]}  Kh7 {[%clk 0:00:00]} 28. Qe4+ {[%clk 0:01:26]} 1-0


[Site "https://www.chess.com"]

[Event "Titled Tuesday Blitz November 07 Late 2023"]
[White "Mikaelyan, Arman"]
[Black "Jovic, Stanoje"]
[WhiteFideId "13304852"]
[BlackFideId "905020"]
[WhiteElo "2862"]
[BlackElo "2455"]
[Result "1-0"]
[Round "1"]
[TimeControl "180+1"]
[Date "2023.11.07"]
[WhiteClock "0:00:09"]
[BlackClock "0:00:00"]
[Board "41"]

1. d4 {[%clk 0:02:59]}  Nf6 {[%clk 0:02:59]} 2. Nf3 {[%clk 0:03:00]}  e6 {[%clk 0:02:59]} 3. c4 {[%clk 0:03:00]}  Bb4+ {[%clk 0:02:58]} 4. Nbd2 {[%clk 0:03:00]}  O-O {[%clk 0:02:57]} 5. a3 {[%clk 0:03:00]}  Bxd2+ {[%clk 0:02:56]} 6. Qxd2 {[%clk 0:03:01]}  d5 {[%clk 0:02:54]} 7. e3 {[%clk 0:02:57]}  b6 {[%clk 0:02:52]} 8. Be2 {[%clk 0:02:49]}  a5 {[%clk 0:02:49]} 9. b3 {[%clk 0:02:44]}  Ba6 {[%clk 0:02:46]} 10. a4 {[%clk 0:02:36]}  c5 {[%clk 0:02:40]} 11. O-O {[%clk 0:02:26]}  Nc6 {[%clk 0:02:38]} 12. dxc5 {[%clk 0:02:25]}  bxc5 {[%clk 0:02:36]} 13. Bb2 {[%clk 0:02:16]}  dxc4 {[%clk 0:02:30]} 14. bxc4 {[%clk 0:02:04]}  Qxd2 {[%clk 0:02:27]} 15. Nxd2 {[%clk 0:02:04]}  Rab8 {[%clk 0:02:25]} 16. Bxf6 {[%clk 0:02:03]}  gxf6 {[%clk 0:02:24]} 17. Ne4 {[%clk 0:02:03]}  Rb2 {[%clk 0:02:18]} 18. Rfe1 {[%clk 0:01:58]}  Nb4 {[%clk 0:02:13]} 19. Bf1 {[%clk 0:01:32]}  Nc2 {[%clk 0:02:03]} 20. Re2 {[%clk 0:01:32]}  Bxc4 {[%clk 0:01:57]} 21. Rd2 {[%clk 0:01:31]}  Bxf1 {[%clk 0:01:56]} 22. Rxf1 {[%clk 0:01:32]}  Rfb8 {[%clk 0:01:45]} 23. Nxf6+ {[%clk 0:01:26]}  Kg7 {[%clk 0:01:39]} 24. Ne4 {[%clk 0:01:19]}  c4 {[%clk 0:01:35]} 25. Rc1 {[%clk 0:01:14]}  Na3 {[%clk 0:01:33]} 26. Rxb2 {[%clk 0:00:53]}  Rxb2 {[%clk 0:01:33]} 27. g4 {[%clk 0:00:54]}  Rb4 {[%clk 0:01:18]} 28. Nc5 {[%clk 0:00:51]}  Rb1 {[%clk 0:01:09]} 29. Rxb1 {[%clk 0:00:51]}  Nxb1 {[%clk 0:01:09]} 30. Kf1 {[%clk 0:00:51]}  h5 {[%clk 0:01:04]} 31. gxh5 {[%clk 0:00:46]}  Kh6 {[%clk 0:01:03]} 32. Ke1 {[%clk 0:00:41]}  Kxh5 {[%clk 0:01:01]} 33. Nb7 {[%clk 0:00:40]}  Nc3 {[%clk 0:00:57]} 34. Nxa5 {[%clk 0:00:40]}  Nxa4 {[%clk 0:00:56]} 35. Nxc4 {[%clk 0:00:40]}  Kg4 {[%clk 0:00:56]} 36. Ne5+ {[%clk 0:00:38]}  Kh3 {[%clk 0:00:54]} 37. Nxf7 {[%clk 0:00:36]}  Kxh2 {[%clk 0:00:54]} 38. Kf1 {[%clk 0:00:31]}  Nc5 {[%clk 0:00:52]} 39. Ne5 {[%clk 0:00:30]}  Kh3 {[%clk 0:00:48]} 40. Kg1 {[%clk 0:00:31]}  Ne4 {[%clk 0:00:45]} 41. Nd3 {[%clk 0:00:26]}  Kg4 {[%clk 0:00:42]} 42. Kg2 {[%clk 0:00:27]}  Ng5 {[%clk 0:00:36]} 43. f3+ {[%clk 0:00:27]}  Kf5 {[%clk 0:00:36]} 44. Kg3 {[%clk 0:00:27]}  e5 {[%clk 0:00:33]} 45. Nf2 {[%clk 0:00:27]}  Ne6 {[%clk 0:00:28]} 46. Ne4 {[%clk 0:00:22]}  Nc7 {[%clk 0:00:26]} 47. Nc5 {[%clk 0:00:22]}  Nb5 {[%clk 0:00:24]} 48. Kh4 {[%clk 0:00:17]}  Nc3 {[%clk 0:00:22]} 49. Kg3 {[%clk 0:00:15]}  Ne2+ {[%clk 0:00:22]} 50. Kf2 {[%clk 0:00:15]}  Nc3 {[%clk 0:00:22]} 51. e4+ {[%clk 0:00:14]}  Kf6 {[%clk 0:00:19]} 52. Kg3 {[%clk 0:00:14]}  Ne2+ {[%clk 0:00:18]} 53. Kg4 {[%clk 0:00:15]}  Nf4 {[%clk 0:00:17]} 54. Na6 {[%clk 0:00:14]}  Ke6 {[%clk 0:00:15]} 55. Nb4 {[%clk 0:00:13]}  Ne2 {[%clk 0:00:14]} 56. Nd5 {[%clk 0:00:13]}  Nd4 {[%clk 0:00:13]} 57. Ne3 {[%clk 0:00:13]}  Ne2 {[%clk 0:00:12]} 58. Ng2 {[%clk 0:00:12]}  Nd4 {[%clk 0:00:11]} 59. Nh4 {[%clk 0:00:13]}  Ne2 {[%clk 0:00:11]} 60. Kg5 {[%clk 0:00:14]}  Nd4 {[%clk 0:00:11]} 61. Kg6 {[%clk 0:00:14]}  Ne2 {[%clk 0:00:10]} 62. Kg7 {[%clk 0:00:13]}  Nd4 {[%clk 0:00:10]} 63. Kf8 {[%clk 0:00:14]}  Ne2 {[%clk 0:00:10]} 64. Ke8 {[%clk 0:00:15]}  Nd4 {[%clk 0:00:10]} 65. Kd8 {[%clk 0:00:15]}  Ne2 {[%clk 0:00:10]} 66. Kc7 {[%clk 0:00:16]}  Kf6 {[%clk 0:00:11]} 67. Kd6 {[%clk 0:00:14]}  Kg5 {[%clk 0:00:09]} 68. Ng2 {[%clk 0:00:11]}  Kf6 {[%clk 0:00:09]} 69. Ne3 {[%clk 0:00:11]}  Nd4 {[%clk 0:00:05]} 70. Ng4+ {[%clk 0:00:11]}  Kg5 {[%clk 0:00:05]} 71. Nxe5 {[%clk 0:00:12]}  Ne2 {[%clk 0:00:05]} 72. Nd3 {[%clk 0:00:10]}  Kh4 {[%clk 0:00:02]} 73. e5 {[%clk 0:00:09]}  Kg5 {[%clk 0:00:02]} 74. e6 {[%clk 0:00:09]}  Nd4 {[%clk 0:00:02]} 75. e7 {[%clk 0:00:08]}  Nf5+ {[%clk 0:00:00]} 76. Ke6 {[%clk 0:00:09]} 1-0


[Site "https://www.chess.com"]

[Event "Titled Tuesday Blitz November 07 Late 2023"]
[White "Akhayan, Ruben"]
[Black "Vasquez Schroeder, Rodrigo"]
[WhiteFideId "204439"]
[BlackFideId "3400042"]
[WhiteElo "2445"]
[BlackElo "2844"]
[Result "0-1"]
[Round "1"]
[TimeControl "180+1"]
[Date "2023.11.07"]
[WhiteClock "0:00:51"]
[BlackClock "0:01:58"]
[Board "44"]

1. e4 {[%clk 0:02:59]}  c5 {[%clk 0:02:59]} 2. Nf3 {[%clk 0:02:57]}  d6 {[%clk 0:03:00]} 3. d4 {[%clk 0:02:57]}  cxd4 {[%clk 0:03:00]} 4. Nxd4 {[%clk 0:02:58]}  Nf6 {[%clk 0:03:00]} 5. Nc3 {[%clk 0:02:58]}  a6 {[%clk 0:03:00]} 6. Bc4 {[%clk 0:02:58]}  e6 {[%clk 0:03:01]} 7. Bb3 {[%clk 0:02:58]}  b5 {[%clk 0:03:01]} 8. O-O {[%clk 0:02:58]}  Be7 {[%clk 0:03:01]} 9. f4 {[%clk 0:02:59]}  O-O {[%clk 0:02:57]} 10. e5 {[%clk 0:02:59]}  dxe5 {[%clk 0:02:50]} 11. fxe5 {[%clk 0:03:00]}  Bc5 {[%clk 0:02:46]} 12. Be3 {[%clk 0:02:44]}  Nc6 {[%clk 0:02:37]} 13. Nxc6 {[%clk 0:02:22]}  Bxe3+ {[%clk 0:02:35]} 14. Kh1 {[%clk 0:02:22]}  Qxd1 {[%clk 0:02:33]} 15. Raxd1 {[%clk 0:02:21]}  Ng4 {[%clk 0:02:33]} 16. Ne7+ {[%clk 0:02:17]}  Kh8 {[%clk 0:02:32]} 17. Rxf7 {[%clk 0:01:17]}  Nf2+ {[%clk 0:02:15]} 18. Rxf2 {[%clk 0:01:16]}  Bxf2 {[%clk 0:02:15]} 19. Ne4 {[%clk 0:01:16]}  Bh4 {[%clk 0:02:06]} 20. Nxc8 {[%clk 0:01:05]}  Raxc8 {[%clk 0:02:06]} 21. c3 {[%clk 0:01:04]}  Rcd8 {[%clk 0:02:03]} 22. Nd6 {[%clk 0:01:02]}  Be7 {[%clk 0:02:00]} 23. Bxe6 {[%clk 0:01:01]}  Bxd6 {[%clk 0:02:00]} 24. exd6 {[%clk 0:00:51]}  Rxd6 {[%clk 0:01:58]} 0-1


[Site "https://www.chess.com"]

[Event "Titled Tuesday Blitz November 07 Late 2023"]
[White "mind1mover"]
[Black "szachmistrz2500"]
[WhiteElo "2831"]
[BlackElo "2445"]
[Result "1-0"]
[Round "1"]
[TimeControl "180+1"]
[Date "2023.11.07"]
[WhiteClock "0:00:21"]
[BlackClock "0:00:24"]
[Board "45"]

1. Nf3 {[%clk 0:03:00]}  d5 {[%clk 0:02:49]} 2. b3 {[%clk 0:03:01]}  Nf6 {[%clk 0:02:47]} 3. Bb2 {[%clk 0:03:01]}  c6 {[%clk 0:02:47]} 4. c4 {[%clk 0:03:01]}  Bf5 {[%clk 0:02:46]} 5. g3 {[%clk 0:03:01]}  e6 {[%clk 0:02:45]} 6. Bg2 {[%clk 0:03:01]}  h6 {[%clk 0:02:45]} 7. O-O {[%clk 0:03:02]}  Nbd7 {[%clk 0:02:44]} 8. d3 {[%clk 0:03:02]}  Be7 {[%clk 0:02:42]} 9. Nbd2 {[%clk 0:03:03]}  O-O {[%clk 0:02:42]} 10. a3 {[%clk 0:03:04]}  a5 {[%clk 0:02:41]} 11. Ra2 {[%clk 0:03:03]}  b5 {[%clk 0:02:39]} 12. Qa1 {[%clk 0:03:01]}  Bd6 {[%clk 0:02:37]} 13. Rc1 {[%clk 0:02:58]}  Qe7 {[%clk 0:02:36]} 14. Ne5 {[%clk 0:02:57]}  Nxe5 {[%clk 0:02:31]} 15. Bxe5 {[%clk 0:02:57]}  bxc4 {[%clk 0:02:25]} 16. bxc4 {[%clk 0:02:44]}  Bg6 {[%clk 0:02:15]} 17. Nf3 {[%clk 0:02:32]}  Rab8 {[%clk 0:02:09]} 18. Rac2 {[%clk 0:01:53]}  Rb3 {[%clk 0:02:05]} 19. c5 {[%clk 0:01:35]}  Bc7 {[%clk 0:01:54]} 20. Nd4 {[%clk 0:01:06]}  Bxe5 {[%clk 0:01:51]} 21. Nxc6 {[%clk 0:01:07]}  Qc7 {[%clk 0:01:19]} 22. Nxe5 {[%clk 0:01:05]}  Rfb8 {[%clk 0:01:15]} 23. Nxg6 {[%clk 0:00:58]}  fxg6 {[%clk 0:01:15]} 24. c6 {[%clk 0:00:58]}  a4 {[%clk 0:01:12]} 25. Bh3 {[%clk 0:00:51]}  Kf7 {[%clk 0:01:11]} 26. Kg2 {[%clk 0:00:40]}  g5 {[%clk 0:01:11]} 27. Kg1 {[%clk 0:00:34]}  g4 {[%clk 0:01:09]} 28. Bg2 {[%clk 0:00:35]}  R8b6 {[%clk 0:00:57]} 29. h3 {[%clk 0:00:34]}  h5 {[%clk 0:00:56]} 30. h4 {[%clk 0:00:33]}  Ne8 {[%clk 0:00:52]} 31. e4 {[%clk 0:00:28]}  Nf6 {[%clk 0:00:48]} 32. exd5 {[%clk 0:00:26]}  exd5 {[%clk 0:00:41]} 33. Qd4 {[%clk 0:00:24]}  Rxa3 {[%clk 0:00:40]} 34. Qxb6 {[%clk 0:00:20]}  Qxb6 {[%clk 0:00:24]} 35. c7 {[%clk 0:00:21]} 1-0


[Site "https://www.chess.com"]

[Event "Titled Tuesday Blitz November 07 Late 2023"]
[White "Haitin, Ilja"]
[Black "Zakhartsov, Vladimir"]
[WhiteFideId "4501764"]
[BlackFideId "4145097"]
[WhiteElo "2443"]
[BlackElo "2826"]
[Result "0-1"]
[Round "1"]
[TimeControl "180+1"]
[Date "2023.11.07"]
[WhiteClock "0:00:10"]
[BlackClock "0:01:51"]
[Board "46"]

1. Nf3 {[%clk 0:03:00]}  c5 {[%clk 0:02:59]} 2. g3 {[%clk 0:02:49]}  Nc6 {[%clk 0:02:59]} 3. Bg2 {[%clk 0:02:48]}  g6 {[%clk 0:02:59]} 4. c4 {[%clk 0:02:46]}  Bg7 {[%clk 0:03:00]} 5. Nc3 {[%clk 0:02:46]}  e6 {[%clk 0:02:59]} 6. h4 {[%clk 0:02:46]}  Nf6 {[%clk 0:02:57]} 7. d4 {[%clk 0:02:42]}  cxd4 {[%clk 0:02:54]} 8. Nb5 {[%clk 0:02:36]}  d5 {[%clk 0:02:48]} 9. cxd5 {[%clk 0:02:31]}  Qa5+ {[%clk 0:02:44]} 10. Kf1 {[%clk 0:02:24]}  Qxb5 {[%clk 0:02:30]} 11. dxc6 {[%clk 0:02:24]}  Qxc6 {[%clk 0:02:24]} 12. Nxd4 {[%clk 0:02:19]}  Qd7 {[%clk 0:02:24]} 13. Bg5 {[%clk 0:01:59]}  h6 {[%clk 0:02:22]} 14. Be3 {[%clk 0:01:56]}  Ng4 {[%clk 0:02:20]} 15. Rc1 {[%clk 0:01:43]}  Nxe3+ {[%clk 0:02:19]} 16. fxe3 {[%clk 0:01:43]}  O-O {[%clk 0:02:19]} 17. Bf3 {[%clk 0:01:37]}  e5 {[%clk 0:02:14]} 18. Nb3 {[%clk 0:01:36]}  Qa4 {[%clk 0:02:07]} 19. a3 {[%clk 0:01:29]}  e4 {[%clk 0:02:06]} 20. Bxe4 {[%clk 0:01:27]}  Qxe4 {[%clk 0:02:06]} 21. Rh2 {[%clk 0:01:16]}  Be6 {[%clk 0:01:59]} 22. Nc5 {[%clk 0:01:13]}  Qxe3 {[%clk 0:01:59]} 23. Rf2 {[%clk 0:01:08]}  Bd4 {[%clk 0:01:54]} 24. Nd3 {[%clk 0:00:10]}  Bf5 {[%clk 0:01:51]} 0-1


[Site "https://www.chess.com"]

[Event "Titled Tuesday Blitz November 07 Late 2023"]
[White "Rustemov, Alexander"]
[Black "ExchangeAB"]
[WhiteFideId "4119002"]
[WhiteElo "2819"]
[BlackElo "2440"]
[Result "1-0"]
[Round "1"]
[TimeControl "180+1"]
[Date "2023.11.07"]
[WhiteClock "0:00:36"]
[BlackClock "0:00:11"]
[Board "47"]

1. d4 {[%clk 0:03:00]}  d5 {[%clk 0:02:59]} 2. c4 {[%clk 0:03:01]}  c6 {[%clk 0:03:00]} 3. Nc3 {[%clk 0:03:01]}  Nf6 {[%clk 0:02:59]} 4. e3 {[%clk 0:03:02]}  Bf5 {[%clk 0:02:56]} 5. cxd5 {[%clk 0:03:01]}  cxd5 {[%clk 0:02:55]} 6. Qb3 {[%clk 0:03:01]}  Bc8 {[%clk 0:02:56]} 7. Nf3 {[%clk 0:03:01]}  e6 {[%clk 0:02:53]} 8. Ne5 {[%clk 0:03:01]}  Be7 {[%clk 0:02:50]} 9. Bd3 {[%clk 0:03:01]}  O-O {[%clk 0:02:49]} 10. Bd2 {[%clk 0:03:01]}  Nc6 {[%clk 0:02:45]} 11. f4 {[%clk 0:03:00]}  Nb4 {[%clk 0:02:08]} 12. Bb1 {[%clk 0:02:55]}  Nd7 {[%clk 0:01:57]} 13. O-O {[%clk 0:02:15]}  f5 {[%clk 0:01:47]} 14. a3 {[%clk 0:02:11]}  Nc6 {[%clk 0:01:44]} 15. Bd3 {[%clk 0:02:02]}  Ndxe5 {[%clk 0:01:42]} 16. fxe5 {[%clk 0:02:01]}  Bg5 {[%clk 0:01:39]} 17. Ne2 {[%clk 0:02:00]}  Rb8 {[%clk 0:01:35]} 18. Rac1 {[%clk 0:01:59]}  Bd7 {[%clk 0:01:34]} 19. Nf4 {[%clk 0:01:39]}  Qb6 {[%clk 0:01:20]} 20. Qxb6 {[%clk 0:01:36]}  axb6 {[%clk 0:01:21]} 21. g3 {[%clk 0:01:34]}  Rfc8 {[%clk 0:01:20]} 22. Kf2 {[%clk 0:01:31]}  Kf7 {[%clk 0:01:20]} 23. Ke2 {[%clk 0:01:31]}  Na5 {[%clk 0:01:18]} 24. Rxc8 {[%clk 0:01:25]}  Rxc8 {[%clk 0:01:18]} 25. Rc1 {[%clk 0:01:26]}  Rxc1 {[%clk 0:01:17]} 26. Bxc1 {[%clk 0:01:27]}  Nb3 {[%clk 0:01:15]} 27. Bd2 {[%clk 0:01:25]}  Nxd2 {[%clk 0:01:12]} 28. Kxd2 {[%clk 0:01:25]}  Be7 {[%clk 0:01:11]} 29. h4 {[%clk 0:01:20]}  g6 {[%clk 0:01:10]} 30. Ke2 {[%clk 0:01:10]}  h6 {[%clk 0:01:09]} 31. Kf3 {[%clk 0:01:05]}  g5 {[%clk 0:01:09]} 32. hxg5 {[%clk 0:01:04]}  hxg5 {[%clk 0:01:10]} 33. Ne2 {[%clk 0:01:03]}  g4+ {[%clk 0:01:04]} 34. Kf2 {[%clk 0:01:03]}  b5 {[%clk 0:01:00]} 35. b4 {[%clk 0:01:00]}  Bg5 {[%clk 0:00:59]} 36. Nc3 {[%clk 0:01:00]}  Ke7 {[%clk 0:00:54]} 37. Bxb5 {[%clk 0:01:00]}  Bxb5 {[%clk 0:00:41]} 38. Nxb5 {[%clk 0:01:01]}  Kd7 {[%clk 0:00:42]} 39. Nc3 {[%clk 0:00:53]}  Be7 {[%clk 0:00:41]} 40. Ke2 {[%clk 0:00:49]}  Bf8 {[%clk 0:00:41]} 41. Kd3 {[%clk 0:00:48]}  Kc6 {[%clk 0:00:41]} 42. Ne2 {[%clk 0:00:41]}  Be7 {[%clk 0:00:38]} 43. Nf4 {[%clk 0:00:40]}  Kd7 {[%clk 0:00:39]} 44. Kc3 {[%clk 0:00:40]}  Bf8 {[%clk 0:00:38]} 45. a4 {[%clk 0:00:40]}  Bh6 {[%clk 0:00:37]} 46. Kb3 {[%clk 0:00:37]}  Bg5 {[%clk 0:00:36]} 47. a5 {[%clk 0:00:37]}  Bd8 {[%clk 0:00:29]} 48. Ka4 {[%clk 0:00:36]}  Bc7 {[%clk 0:00:24]} 49. b5 {[%clk 0:00:36]}  Bb8 {[%clk 0:00:18]} 50. b6 {[%clk 0:00:35]}  Ke7 {[%clk 0:00:18]} 51. Kb5 {[%clk 0:00:35]}  Kd7 {[%clk 0:00:19]} 52. a6 {[%clk 0:00:35]}  bxa6+ {[%clk 0:00:11]} 53. Kxa6 {[%clk 0:00:36]} 1-0


[Site "https://www.chess.com"]